[Event "GER-ch Youth U14W 2020"]
[Site "Willingen"]
[Date "2020.10.24"]
[Round "7.2"]
[White "Bildat, Emilia"]
[Black "Becker, Linda"]
[Result "0-1"]
[ECO "A20"]
[WhiteElo "1704"]
[BlackElo "1767"]
[Annotator "NA RC"]
[PlyCount "84"]
[EventDate "2020.10.20"]
[EventType "swiss"]
[EventRounds "7"]
[EventCountry "GER"]
[SourceTitle "playchess.com"]
[Source "ChessBase"]
[SourceQuality "1"]
[TimeControl "40/5400+30:1800+30"]

1. c4 {[%emt 0:00:00]} e5 {[%emt 0:00:00]} 2. g3 {[%emt 0:00:00]} Nc6 {[%emt 0:00:00]} 3. Bg2 {[%emt 0:00:15]} f5 {[%emt 0:00:12]} 4. Nc3 {[%emt 0:01:19]} Nf6 {[%emt 0:00:51]} 5. d3 {[%emt 0:00:56]} Bb4 {[%emt 0:00:37]} 6. Bd2 {[%emt 0:01:04]} O-O {[%emt 0:01:13]} 7. e3 {[%emt 0:01:09]} Bxc3 {[%emt 0:01:04]} 8. bxc3 {[%emt 0:04:08]} d6 {[%emt 0:02:27]} 9. Rb1 {[%emt 0:05:01]} Qe8 {[%emt 0:04:42]} 10. Nh3 {[%emt 0:07:03]} Kh8 {[%emt 0:07:32]} 11. O-O {[%emt 0:02:46]} Rb8 {[%emt 0:06:02]} 12. f4 {[%emt 0:07:45]} e4 {[%emt 0:05:21]} 13. d4 {[%emt 0:03:52]} b6 {[%emt 0:02:23]} 14. Qa4 {[%emt 0:08:09]} Bd7 {[%emt 0:03:24]} 15. Qd1 {[%emt 0:04:20]} Na5 {[%emt 0:02:53]} 16. c5 {[%emt 0:02:52]} dxc5 {[%emt 0:01:23]} 17. dxc5 {[%emt 0:00:58]} Bb5 {[%emt 0:01:34]} 18. Re1 {[%emt 0:01:17]} Bd3 {[%emt 0:00:34]} 19. Rb2 {[%emt 0:03:00]} Nc4 {[%emt 0:02:21]} 20. Rb3 {[%emt 0:00:33]} Rd8 {[%emt 0:03:42]} 21. cxb6 {[%emt 0:08:07]} cxb6 {[%emt 0:04:10]} 22. Rb4 {[%emt 0:01:52]} Nd5 {[%emt 0:02:09]} 23. Rb3 {[%emt 0:00:46]} Nc7 {[%emt 0:04:35]} 24. Nf2 {[%emt 0:05:33]} Nxd2 {[%emt 0:01:23]} 25. Qxd2 {[%emt 0:00:33]} Bc4 {[%emt 0:00:17]} 26. Qc2 {[%emt 0:00:14]} Bxb3 {[%emt 0:00:30]} 27. axb3 {[%emt 0:00:10]} Rf7 {[%emt 0:02:07]} 28. Rd1 {[%emt 0:02:47]} Rxd1+ {[%emt 0:00:51]} 29. Nxd1 {[%emt 0:02:12]} Rd7 {[%emt 0:00:39]} 30. Nb2 {[%emt 0:00:21]} Qd8 {[%emt 0:01:00]} 31. Nc4 {[%emt 0:00:31]} Rd1+ {[%emt 0:00:44]} 32. Bf1 {[%emt 0:01:30]} b5 {[%emt 0:03:08]} 33. Ne5 {[%emt 0:03:58]} Qd2 {[%emt 0:00:00]} 34. Qxd2 {[%emt 0:03:10]} Rxd2 {[%emt 0:00:00]} 35. c4 {[%emt 0:00:42]} a6 {[%emt 0:01:19]} 36. cxb5 {[%emt 0:01:35]} axb5 {[%emt 0:00:43]} 37. Nc6 {[%emt 0:01:41]} Rb2 {[%emt 0:02:21]} 38. Nd4 {[%emt 0:01:00]} g6 {[%emt 0:00:49]} 39. h4 {[%emt 0:02:41]} Nd5 {[%emt 0:04:02]} 40. Bxb5 {[%emt 0:02:58]} Nxe3 {[%emt 0:00:42]} 41. Be2 {[%emt 0:32:15]} Rd2 {[%emt 0:31:33]} 42. Kf2 {[%emt 0:03:08]} Ng4+ {[%emt 0:00:40]} 0-1

[Event "GER-ch Youth U14W 2020"]
[Site "Willingen"]
[Date "2020.10.24"]
[Round "7.3"]
[White "Wagner, Margarethe"]
[Black "Zhou, Lepu Coco"]
[Result "1/2-1/2"]
[ECO "C88"]
[WhiteElo "1804"]
[BlackElo "1872"]
[Annotator "NA RC"]
[PlyCount "109"]
[EventDate "2020.10.20"]
[EventType "swiss"]
[EventRounds "7"]
[EventCountry "GER"]
[SourceTitle "playchess.com"]
[Source "ChessBase"]
[SourceQuality "1"]
[TimeControl "40/5400+30:1800+30"]

1. e4 {[%emt 0:00:00]} e5 {[%emt 0:00:00]} 2. Nf3 {[%emt 0:00:00]} Nc6 {[%emt 0:00:00]} 3. Bb5 {[%emt 0:00:00]} a6 {[%emt 0:00:00]} 4. Ba4 {[%emt 0:00:00]} Nf6 {[%emt 0:00:01]} 5. O-O {[%emt 0:00:00]} Be7 {[%emt 0:00:12]} 6. Re1 {[%emt 0:00:06]} b5 {[%emt 0:00:08]} 7. Bb3 {[%emt 0:00:06]} O-O {[%emt 0:00:13]} 8. a4 {[%emt 0:00:15]} Bb7 {[%emt 0:01:18]} 9. d3 {[%emt 0:00:39]} d6 {[%emt 0:00:50]} 10. c3 {[%emt 0:02:47]} Na5 {[%emt 0:01:15]} 11. Bc2 {[%emt 0:01:33]} c5 {[%emt 0:00:17]} 12. Nbd2 {[%emt 0:06:15]} Re8 {[%emt 0:01:20] C88: Closed Ruy Lopez: Anti-Marshall Systems.} 13. Nf1 {[%emt 0:02:53]} Bf8 {[%emt 0:01:24]} 14. Ng3 {[%emt 0:01:46]} (14. axb5 $14 axb5 15. Bg5) 14... g6 {[%emt 0:00:25]} 15. h4 {[%emt 0:09:07] [#]} d5 $146 {[%emt 0:08:27]} ({Predecessor:} 15... h5 16. Bg5 Be7 17. d4 Ng4 18. Qe2 c4 19. Rad1 Qb6 20. Qd2 f6 21. Be3 Rad8 {0-1 (41) Malar,P (2097)-Skapikova,L (1969) Piestany 2006}) 16. Bg5 {[%emt 0:10:13]} h6 {[%emt 0:02:14]} 17. Bd2 {[%emt 0:06:03]} dxe4 {[%emt 0:01:06]} 18. dxe4 {[%emt 0:01:33]} Nc4 {[%emt 0:00:28]} 19. b3 {[%emt 0:04:48]} Nxd2 {[%emt 0:01:27]} 20. Qxd2 {[%emt 0:04:35]} Qxd2 {[%emt 0:00:24]} 21. Nxd2 {[%emt 0:00:09]} Red8 {[%emt 0:02:45]} 22. Nf3 {[%emt 0:05:02]} Ng4 {[%emt 0:00:33]} 23. c4 {[%emt 0:03:09]} bxc4 {[%emt 0:02:17]} 24. bxc4 {[%emt 0:00:22]} a5 {[%emt 0:00:44]} 25. Nf1 {[%emt 0:16:21]} Ba6 {[%emt 0:01:17]} 26. N1d2 {[%emt 0:01:23]} Rab8 {[%emt 0:00:31]} 27. Nb3 {[%emt 0:01:22]} Bxc4 {[%emt 0:02:08]} ({Better is} 27... Bd6 $11) 28. Nxa5 {[%emt 0:00:57]} Rb2 {[%emt 0:00:14]} (28... Rb4 $1 $14) 29. Nxc4 {[%emt 0:05:55]} Rxc2 {[%emt 0:00:07]} 30. Ne3 {[%emt 0:00:09]} Nxe3 {[%emt 0:00:34]} 31. Rxe3 {[%emt 0:00:09]} c4 {[%emt 0:00:26]} 32. Nxe5 {[%emt 0:05:25]} Bg7 {[%emt 0:01:18]} 33. f4 {[%emt 0:02:40] [#]} Rdd2 {[%emt 0:00:09]} ({Better is} 33... g5 $1 $19 {[%cal Rg5f4][%mdl 512]} 34. hxg5 (34. fxg5 Bxe5) 34... hxg5) 34. Rg3 {[%emt 0:00:10]} g5 {[%emt 0:01:59]} (34... Rf2 $17 35. Rf1 Rfe2 {[%mdl 64] Remove Defender}) 35. hxg5 {[%emt 0:02:25]} hxg5 {[%emt 0:00:08]} 36. Rf1 {[%emt 0:02:40]} gxf4 {[%emt 0:07:29]} (36... c3 $11 37. Kh2 Re2) 37. Rxf4 {[%emt 0:02:57]} Rc1+ {[%emt 0:00:09]} 38. Kh2 {[%emt 0:01:30]} Rdd1 {[%emt 0:01:11]} 39. Rgg4 {[%emt 0:00:16]} Rh1+ {[%emt 0:02:31]} 40. Kg3 {[%emt 0:00:06]} Rc3+ {[%emt 0:00:17]} 41. Kf2 {[%emt 0:31:19]} Rc2+ {[%emt 0:30:15] [#]} ({Black should try} 41... Rcc1 $1 $14) 42. Kg3 {[%emt 0:00:00]} (42. Ke3 $1 $16 Re1+ 43. Kd4) 42... Rg1 {[%emt 0:00:00]} 43. Kh2 {[%emt 0:00:00]} Rcc1 {[%emt 0:00:00]} 44. Rxf7 {[%emt 0:00:00]} Rh1+ {[%emt 0:00:00]} 45. Kg3 {[%emt 0:00:00]} Rc3+ {[%emt 0:00:00] [#]} 46. Kf2 $1 {[%emt 0:00:00]} ({Weaker is} 46. Rf3 Rxf3+ 47. Nxf3 c3 $11) 46... Rh7 {[%emt 0:00:00]} 47. Rc7 {[%emt 0:00:00]} Kf8 {[%emt 0:00:00]} 48. Rf7+ $2 {[%emt 0:00:00]} ({White must play} 48. Rf4+ $18 Ke8 {[#]} 49. Rff7 $1 {[%mdl 512]} Bxe5 50. Rce7+ {[%mdl 64] Double Attack} Kd8 51. Rxh7 Bd4+ 52. Kf1) 48... Kg8 {[%emt 0:00:00]} 49. Rg6 {[%emt 0:00:00]} (49. Rd7 $142 {[%cal Rd7d8]} Kf8 50. Rf4+ Ke8 {[#]} 51. Rff7 $1 {[%mdl 512]} Bxe5 52. Rxh7) 49... Ra3 {[%emt 0:00:00]} 50. Ra7 {[%emt 0:00:00]} Kf8 {[%emt 0:00:00]} 51. Rc6 {[%emt 0:00:00]} Ra2+ {[%emt 0:00:00]} 52. Kf3 {[%emt 0:00:00]} Ra3+ {[%emt 0:00:00]} 53. Ke2 {[%emt 0:01:35]} Ra2+ {[%emt 0:00:00]} 54. Kf3 {[%emt 0:00:41]} Ra3+ {[%emt 0:00:00]} 55. Ke2 {[%emt 0:06:02]} 1/2-1/2

[Event "GER-ch Youth U14W 2020"]
[Site "Willingen"]
[Date "2020.10.24"]
[Round "7.5"]
[White "Voigt, Anastasia"]
[Black "Buchholz, Maja"]
[Result "1-0"]
[ECO "C07"]
[WhiteElo "1562"]
[BlackElo "1628"]
[Annotator "NA RC"]
[PlyCount "127"]
[EventDate "2020.10.20"]
[EventType "swiss"]
[EventRounds "7"]
[EventCountry "GER"]
[SourceTitle "playchess.com"]
[Source "ChessBase"]
[SourceQuality "1"]
[TimeControl "40/5400+30:1800+30"]

1. e4 {[%emt 0:00:00]} e6 {[%emt 0:00:00]} 2. d4 {[%emt 0:00:07]} d5 {[%emt 0:00:00]} 3. Nd2 {[%emt 0:00:05]} c5 {[%emt 0:00:00]} 4. exd5 {[%emt 0:01:09]} Qxd5 {[%emt 0:00:00]} 5. Ngf3 {[%emt 0:00:41]} cxd4 {[%emt 0:00:06]} 6. Bc4 {[%emt 0:00:22]} Qd7 {[%emt 0:00:13]} 7. Nb3 {[%emt 0:00:52]} Nc6 {[%emt 0:01:03]} 8. O-O {[%emt 0:05:42]} a6 {[%emt 0:00:32]} 9. Nfxd4 {[%emt 0:03:33]} Nxd4 {[%emt 0:00:57]} 10. Nxd4 {[%emt 0:00:56]} Qc7 {[%emt 0:00:23]} 11. Bb3 {[%emt 0:01:20]} Bd6 {[%emt 0:00:23]} 12. Nf3 {[%emt 0:00:59]} Ne7 {[%emt 0:00:36]} 13. Bd2 {[%emt 0:05:01]} O-O {[%emt 0:02:06]} 14. c4 {[%emt 0:05:26]} Ng6 {[%emt 0:08:52]} 15. Bc3 {[%emt 0:05:37]} e5 {[%emt 0:07:04]} 16. h3 {[%emt 0:02:14]} Re8 {[%emt 0:12:00]} 17. Nd2 {[%emt 0:02:26]} Bc5 {[%emt 0:11:23]} 18. Ne4 {[%emt 0:05:04]} Ba7 {[%emt 0:01:12]} 19. Qf3 {[%emt 0:08:08]} Be6 {[%emt 0:02:26]} 20. Rac1 {[%emt 0:07:29]} Bxc4 {[%emt 0:06:56]} 21. Bxc4 {[%emt 0:00:47]} Qxc4 {[%emt 0:00:16]} 22. Nd6 {[%emt 0:01:09]} Qf4 {[%emt 0:05:45]} 23. Nxe8 {[%emt 0:02:23]} Qxf3 {[%emt 0:00:13]} 24. gxf3 {[%emt 0:00:19]} Rxe8 {[%emt 0:00:11]} 25. Bd2 {[%emt 0:04:26]} Bd4 {[%emt 0:01:46]} 26. Rc2 {[%emt 0:04:39]} Nh4 {[%emt 0:03:43]} 27. f4 {[%emt 0:02:00]} exf4 {[%emt 0:02:06]} 28. Bxf4 {[%emt 0:00:20]} Nf3+ {[%emt 0:00:15]} 29. Kg2 {[%emt 0:01:40]} Nh4+ {[%emt 0:01:06]} 30. Kh1 {[%emt 0:02:19]} h6 {[%emt 0:02:23]} 31. Bg3 {[%emt 0:00:35]} Nf3 {[%emt 0:00:37]} 32. b3 {[%emt 0:01:21]} b6 {[%emt 0:01:50]} 33. Rfc1 {[%emt 0:00:51]} Kh7 {[%emt 0:00:49]} 34. Rd1 {[%emt 0:02:10]} Bc5 {[%emt 0:00:56]} 35. Bd6 {[%emt 0:04:24]} Rd8 {[%emt 0:01:21]} 36. Rc3 {[%emt 0:04:32]} Ne5 {[%emt 0:02:23]} 37. f4 {[%emt 0:00:42]} Bxd6 {[%emt 0:07:17]} 38. fxe5 {[%emt 0:06:10]} Bxe5 {[%emt 0:00:15]} 39. Rxd8 {[%emt 0:01:04]} Bxc3 {[%emt 0:00:05]} 40. Rd6 {[%emt 0:00:32]} b5 {[%emt 0:02:23]} 41. Rxa6 {[%emt 0:31:52]} b4 {[%emt 0:30:59]} 42. a4 {[%emt 0:00:19]} f6 43. a5 {[%emt 0:00:30]} Kg6 {[%emt 0:03:10]} 44. Rc6 Kf5 {[%emt 0:01:14]} 45. a6 {[%emt 0:01:16]} Bd4 46. Rc7 {[%emt 0:00:20]} Ke4 {[%emt 0:00:51]} 47. a7 {[%emt 0:00:29]} Bxa7 {[%emt 0:00:00]} 48. Rxa7 {[%emt 0:00:33]} Kd3 {[%emt 0:00:00]} 49. Rxg7 {[%emt 0:00:09]} Kc3 50. Rg3+ {[%emt 0:00:18]} Kc2 {[%emt 0:00:30]} 51. Kg2 {[%emt 0:00:14]} h5 {[%emt 0:00:52]} 52. Re3 {[%emt 0:00:35]} f5 {[%emt 0:00:30]} 53. Kf3 {[%emt 0:00:18]} Kd2 {[%emt 0:00:16]} 54. Kf4 {[%emt 0:00:08]} h4 {[%emt 0:00:06]} 55. Re5 {[%emt 0:02:58]} Kc3 {[%emt 0:00:12]} 56. Rxf5 {[%emt 0:00:28]} Kxb3 {[%emt 0:00:08]} 57. Rb5 {[%emt 0:00:14]} Kc4 {[%emt 0:00:20]} 58. Rb8 {[%emt 0:00:14]} b3 {[%emt 0:00:15]} 59. Kg4 {[%emt 0:00:13]} Kc3 {[%emt 0:00:25]} 60. Kxh4 {[%emt 0:00:08]} b2 {[%emt 0:00:08]} 61. Kg4 {[%emt 0:00:19]} Kc2 {[%emt 0:00:17]} 62. h4 {[%emt 0:00:12]} b1=Q {[%emt 0:00:09]} 63. Rxb1 {[%emt 0:00:08]} Kxb1 {[%emt 0:00:02]} 64. h5 {[%emt 0:00:08]} 1-0

[Event "GER-ch Youth U14W 2020"]
[Site "Willingen"]
[Date "2020.10.24"]
[Round "7.6"]
[White "Hubert, Charlotte"]
[Black "Zöllner, Bente"]
[Result "1-0"]
[ECO "B33"]
[WhiteElo "1438"]
[BlackElo "1630"]
[Annotator "NA RC"]
[PlyCount "129"]
[EventDate "2020.10.20"]
[EventType "swiss"]
[EventRounds "7"]
[EventCountry "GER"]
[SourceTitle "playchess.com"]
[Source "ChessBase"]
[SourceQuality "1"]
[TimeControl "40/5400+30:1800+30"]

1. e4 {[%emt 0:00:00]} c5 {[%emt 0:00:00]} 2. Nf3 {[%emt 0:00:00]} Nc6 {[%emt 0:00:00]} 3. d4 {[%emt 0:00:17]} cxd4 {[%emt 0:00:03]} 4. Nxd4 {[%emt 0:00:10]} Nf6 {[%emt 0:00:13]} 5. Nc3 {[%emt 0:00:07]} e5 {[%emt 0:00:15]} 6. Ndb5 {[%emt 0:00:16]} d6 {[%emt 0:00:18]} 7. Bg5 {[%emt 0:00:22]} a6 {[%emt 0:00:20]} 8. Na3 {[%emt 0:00:08]} b5 {[%emt 0:00:14]} 9. Nd5 {[%emt 0:00:22]} Be7 {[%emt 0:00:13]} 10. Bxf6 {[%emt 0:00:26]} Bxf6 {[%emt 0:00:15]} 11. c3 {[%emt 0:00:26]} Ne7 {[%emt 0:01:35]} 12. Nc2 {[%emt 0:09:35]} Bb7 {[%emt 0:05:47]} 13. Be2 {[%emt 0:08:01]} Nxd5 {[%emt 0:01:23]} 14. exd5 {[%emt 0:00:08]} O-O {[%emt 0:00:23]} 15. O-O {[%emt 0:02:28]} Rc8 {[%emt 0:01:23]} 16. a4 {[%emt 0:12:19]} bxa4 {[%emt 0:04:37]} 17. Rxa4 {[%emt 0:02:41]} Qb6 {[%emt 0:02:54]} 18. Rb4 {[%emt 0:06:17]} Qa7 {[%emt 0:01:41]} 19. Ne3 {[%emt 0:05:38]} Rc5 {[%emt 0:07:40]} 20. Qb3 {[%emt 0:03:14]} Rb8 {[%emt 0:04:10]} 21. Ra1 {[%emt 0:04:56]} a5 {[%emt 0:02:23]} 22. Rb6 {[%emt 0:05:48]} Bd8 {[%emt 0:05:02]} 23. Rb4 {[%emt 0:11:24]} Bc7 {[%emt 0:08:29]} 24. Rb5 {[%emt 0:10:08]} Bxd5 {[%emt 0:05:40]} 25. Rxb8+ {[%emt 0:00:26]} Qxb8 {[%emt 0:00:46]} 26. Qxb8+ {[%emt 0:01:29]} Bxb8 {[%emt 0:00:32]} 27. b4 {[%emt 0:01:15]} Rxc3 {[%emt 0:07:04]} 28. Nxd5 {[%emt 0:00:21]} Rc2 {[%emt 0:00:35]} 29. Bf1 {[%emt 0:02:03]} Ba7 {[%emt 0:02:16]} 30. Ne3 {[%emt 0:00:47]} Rc7 {[%emt 0:02:20]} 31. Rxa5 {[%emt 0:01:08]} g6 {[%emt 0:01:29]} 32. b5 {[%emt 0:01:01]} Bc5 {[%emt 0:04:28]} 33. Nd5 {[%emt 0:01:17]} Rb7 {[%emt 0:00:42]} 34. b6 {[%emt 0:01:45]} Rb8 {[%emt 0:02:18]} 35. Ra6 {[%emt 0:01:37]} f5 {[%emt 0:12:58]} 36. Bb5 {[%emt 0:01:06]} Kf7 {[%emt 0:05:32]} 37. Bc6 {[%emt 0:00:45]} Bxb6 {[%emt 0:06:11]} 38. Rxb6 {[%emt 0:00:12]} Rxb6 {[%emt 0:02:07]} 39. Nxb6 {[%emt 0:00:06]} e4 {[%emt 0:00:23]} 40. Kf1 {[%emt 0:00:44]} Ke6 {[%emt 0:00:51]} 41. Ke2 {[%emt 0:32:46]} g5 {[%emt 0:31:26]} 42. Bd7+ {[%emt 0:00:44]} Kf6 {[%emt 0:01:24]} 43. Nc4 {[%emt 0:01:03]} d5 {[%emt 0:00:00]} 44. Ne3 {[%emt 0:00:00]} f4 {[%emt 0:00:00]} 45. Nxd5+ {[%emt 0:00:00]} Ke5 {[%emt 0:00:00]} 46. Nc3 {[%emt 0:00:00]} Kd4 {[%emt 0:00:00]} 47. Nb1 {[%emt 0:00:00]} h6 {[%emt 0:00:00]} 48. Nd2 {[%emt 0:00:00]} e3 {[%emt 0:00:00]} 49. fxe3+ {[%emt 0:00:00]} fxe3 {[%emt 0:00:00]} 50. Nf1 {[%emt 0:00:00]} Ke4 {[%emt 0:00:00]} 51. Nxe3 {[%emt 0:00:00]} Kf4 {[%emt 0:00:00]} 52. Bg4 {[%emt 0:00:00]} Ke5 {[%emt 0:00:00]} 53. Kf3 {[%emt 0:00:00]} Kf6 {[%emt 0:00:00]} 54. Ke4 {[%emt 0:00:00]} Kg6 {[%emt 0:00:00]} 55. Bd7 {[%emt 0:00:00]} Kf6 {[%emt 0:00:00]} 56. Be8 {[%emt 0:00:00]} Ke7 {[%emt 0:00:00]} 57. Bh5 {[%emt 0:00:00]} Kf6 {[%emt 0:00:00]} 58. Nf5 {[%emt 0:00:00]} g4 {[%emt 0:00:00]} 59. Bxg4 {[%emt 0:00:00]} Kg5 {[%emt 0:00:00]} 60. Nxh6 {[%emt 0:00:00]} Kxh6 {[%emt 0:00:00]} 61. Kf5 {[%emt 0:00:00]} Kg7 {[%emt 0:00:00]} 62. Kg5 {[%emt 0:00:00]} Kh7 {[%emt 0:00:00]} 63. Bf5+ {[%emt 0:00:00]} Kg7 {[%emt 0:00:00]} 64. h4 {[%emt 0:00:00]} Kg8 {[%emt 0:00:00]} 65. Kf6 {[%emt 0:00:00]} 1-0

[Event "GER-ch Youth U14W 2020"]
[Site "Willingen"]
[Date "2020.10.24"]
[Round "7.7"]
[White "Wörz, Ann-Sophie"]
[Black "Fischer, Darja"]
[Result "1-0"]
[ECO "A20"]
[WhiteElo "1473"]
[BlackElo "1598"]
[Annotator "NA RC"]
[PlyCount "59"]
[EventDate "2020.10.20"]
[EventType "swiss"]
[EventRounds "7"]
[EventCountry "GER"]
[SourceTitle "playchess.com"]
[Source "ChessBase"]
[SourceQuality "1"]
[TimeControl "40/5400+30:1800+30"]

1. c4 {[%emt 0:00:00]} e5 {[%emt 0:00:00]} 2. g3 {[%emt 0:00:00]} Nf6 {[%emt 0:00:00]} 3. Bg2 {[%emt 0:00:00]} d5 {[%emt 0:00:11]} 4. cxd5 {[%emt 0:00:06]} Nxd5 {[%emt 0:00:13]} 5. Nc3 {[%emt 0:00:09]} Nb6 {[%emt 0:00:15]} 6. Nf3 {[%emt 0:00:20]} Nc6 {[%emt 0:00:14]} 7. a3 {[%emt 0:01:00]} Be7 {[%emt 0:02:32]} 8. b4 {[%emt 0:02:00]} a6 {[%emt 0:03:28]} 9. d3 {[%emt 0:02:20]} Bg4 {[%emt 0:02:26]} 10. Be3 {[%emt 0:05:59]} Nd5 {[%emt 0:10:04]} 11. Nxd5 {[%emt 0:03:17]} Qxd5 {[%emt 0:00:06]} 12. Rc1 {[%emt 0:02:15]} f6 {[%emt 0:05:09]} 13. Qc2 {[%emt 0:06:44]} Bd7 {[%emt 0:09:19]} 14. O-O {[%emt 0:01:48]} Qf7 {[%emt 0:01:32]} 15. d4 {[%emt 0:04:15]} exd4 {[%emt 0:03:00]} 16. Nxd4 {[%emt 0:01:48]} Nxd4 {[%emt 0:01:02]} 17. Bxd4 {[%emt 0:00:44]} c6 {[%emt 0:00:59]} 18. Rfd1 {[%emt 0:02:44]} O-O {[%emt 0:02:07]} 19. Be4 {[%emt 0:09:29]} f5 {[%emt 0:02:18]} 20. Bg2 {[%emt 0:10:14]} Be6 {[%emt 0:01:23]} 21. Rd3 {[%emt 0:00:55]} Rad8 {[%emt 0:03:35]} 22. Bb6 {[%emt 0:01:42]} Rxd3 {[%emt 0:01:42]} 23. Qxd3 {[%emt 0:00:02]} Bf6 {[%emt 0:02:08]} 24. Rd1 {[%emt 0:01:58]} Re8 {[%emt 0:02:56]} 25. e3 Re7 {[%emt 0:04:57]} 26. Qd8+ {[%emt 0:05:36]} Qe8 {[%emt 0:11:37]} 27. Bc5 {[%emt 0:02:08]} Bb3 {[%emt 0:01:58]} 28. Bxe7 {[%emt 0:03:34]} Kf7 {[%emt 0:00:13]} 29. Qxe8+ {[%emt 0:00:41]} Kxe8 30. Bxf6 1-0

[Event "GER-ch Youth U14W 2020"]
[Site "Willingen"]
[Date "2020.10.24"]
[Round "7.8"]
[White "Roncea, Andrea-Alexandra"]
[Black "Schulz, Hannah"]
[Result "1-0"]
[ECO "B13"]
[WhiteElo "1644"]
[BlackElo "1589"]
[Annotator "NA RC"]
[PlyCount "93"]
[EventDate "2020.10.20"]
[EventType "swiss"]
[EventRounds "7"]
[EventCountry "GER"]
[SourceTitle "playchess.com"]
[Source "ChessBase"]
[SourceQuality "1"]
[TimeControl "40/5400+30:1800+30"]

1. e4 {[%emt 0:00:00]} c6 {[%emt 0:00:00]} 2. d4 {[%emt 0:00:00]} d5 {[%emt 0:00:00]} 3. exd5 {[%emt 0:00:00]} cxd5 {[%emt 0:00:00]} 4. Bd3 {[%emt 0:00:00]} Nc6 {[%emt 0:00:00]} 5. c3 {[%emt 0:00:06]} Qc7 {[%emt 0:00:00]} 6. h3 {[%emt 0:00:37]} e5 {[%emt 0:00:37]} 7. dxe5 {[%emt 0:04:53]} Nxe5 {[%emt 0:00:41]} 8. Bb5+ {[%emt 0:10:29]} Bd7 {[%emt 0:00:56]} 9. Bxd7+ {[%emt 0:08:20]} Qxd7 {[%emt 0:01:03]} 10. Nf3 {[%emt 0:03:44]} Ng6 {[%emt 0:03:46]} 11. Be3 {[%emt 0:04:23]} Nf6 {[%emt 0:01:24]} 12. Nbd2 {[%emt 0:04:40]} Bd6 {[%emt 0:01:26]} 13. Nd4 {[%emt 0:10:39]} Nf4 {[%emt 0:04:17]} 14. Bxf4 {[%emt 0:04:12]} Bxf4 {[%emt 0:00:20]} 15. N2b3 {[%emt 0:08:07]} O-O {[%emt 0:01:58]} 16. O-O {[%emt 0:00:41]} Ne4 {[%emt 0:05:09]} 17. Qf3 {[%emt 0:02:07]} Be5 {[%emt 0:04:18]} 18. Rad1 {[%emt 0:02:33]} Nf6 {[%emt 0:01:57]} 19. Rd3 {[%emt 0:01:01]} Rad8 {[%emt 0:03:07]} 20. Rfd1 {[%emt 0:01:23]} Bxd4 {[%emt 0:02:52]} 21. Nxd4 {[%emt 0:01:29]} Rfe8 {[%emt 0:02:49]} 22. Nc2 {[%emt 0:01:48]} Re6 {[%emt 0:04:21]} 23. Ne3 {[%emt 0:01:30]} Rd6 {[%emt 0:05:01]} 24. Nf5 {[%emt 0:02:01]} Ra6 {[%emt 0:01:15]} 25. a3 {[%emt 0:04:00]} g6 {[%emt 0:05:14]} 26. Ne3 {[%emt 0:01:34]} Rd6 {[%emt 0:01:20]} 27. c4 {[%emt 0:02:32]} d4 {[%emt 0:03:47]} 28. Nc2 {[%emt 0:01:14]} Qc6 {[%emt 0:01:29]} 29. Qxc6 {[%emt 0:00:57]} bxc6 {[%emt 0:00:09]} 30. Rxd4 {[%emt 0:00:39]} Rxd4 {[%emt 0:00:23]} 31. Rxd4 {[%emt 0:00:09]} Rb8 {[%emt 0:00:39]} 32. b4 {[%emt 0:00:30]} Kg7 {[%emt 0:00:56]} 33. Rd6 {[%emt 0:02:24]} c5 {[%emt 0:00:35]} 34. b5 {[%emt 0:01:03]} Rc8 {[%emt 0:01:00]} 35. f3 {[%emt 0:03:01]} Rc7 {[%emt 0:00:49]} 36. Ne3 {[%emt 0:02:16]} Ne8 {[%emt 0:00:37]} 37. Rd8 {[%emt 0:00:44]} Nf6 {[%emt 0:00:25]} 38. Nd5 {[%emt 0:00:46]} Nxd5 {[%emt 0:00:10]} 39. Rxd5 {[%emt 0:00:09]} Kf6 {[%emt 0:00:15]} 40. Kf2 {[%emt 0:00:30]} Ke6 {[%emt 0:00:41]} 41. a4 {[%emt 0:30:52]} a5 {[%emt 0:32:16]} 42. Rd8 {[%emt 0:03:01]} Rb7 {[%emt 0:00:21]} 43. Ra8 {[%emt 0:01:24]} Ke5 {[%emt 0:00:55]} 44. Ke3 {[%emt 0:00:29]} Rd7 {[%emt 0:00:15]} 45. Rxa5 {[%emt 0:00:59]} Rd4 {[%emt 0:00:14]} 46. b6 {[%emt 0:00:58]} Rxc4 {[%emt 0:00:20]} 47. b7 {[%emt 0:00:30]} 1-0

[Event "GER-ch Youth U14W 2020"]
[Site "Willingen"]
[Date "2020.10.24"]
[Round "7.9"]
[White "Alferova, Emily"]
[Black "Ulrich, Helena Irene"]
[Result "1/2-1/2"]
[ECO "B24"]
[WhiteElo "1329"]
[BlackElo "1610"]
[Annotator "NA RC"]
[PlyCount "101"]
[EventDate "2020.10.20"]
[EventType "swiss"]
[EventRounds "7"]
[EventCountry "GER"]
[SourceTitle "playchess.com"]
[Source "ChessBase"]
[SourceQuality "1"]
[TimeControl "40/5400+30:1800+30"]

1. e4 {[%emt 0:00:00]} c5 {[%emt 0:00:00]} 2. Nc3 {[%emt 0:00:00]} Nc6 {[%emt 0:00:00]} 3. g3 {[%emt 0:00:00]} g6 {[%emt 0:00:44]} 4. d3 {[%emt 0:00:03]} Bg7 {[%emt 0:00:25]} 5. Be3 {[%emt 0:00:37]} d6 {[%emt 0:01:07]} 6. Qd2 {[%emt 0:00:44]} e6 {[%emt 0:01:33]} 7. Bg2 {[%emt 0:00:57]} Nge7 {[%emt 0:00:34]} 8. f4 {[%emt 0:01:50]} O-O {[%emt 0:02:43]} 9. Nf3 {[%emt 0:02:14]} Qb6 10. Rb1 {[%emt 0:02:47]} d5 {[%emt 0:18:12]} 11. Ne2 {[%emt 0:12:49]} Rd8 {[%emt 0:05:56]} 12. e5 {[%emt 0:03:42]} d4 {[%emt 0:02:40]} 13. Bf2 {[%emt 0:01:15]} Nd5 {[%emt 0:02:15]} 14. O-O {[%emt 0:03:41]} Nce7 {[%emt 0:04:21]} 15. g4 {[%emt 0:02:58]} Qc7 {[%emt 0:02:54]} 16. Bg3 {[%emt 0:06:43]} Ne3 {[%emt 0:01:24]} 17. Rfc1 {[%emt 0:03:38]} Nxg4 {[%emt 0:14:56]} 18. c3 {[%emt 0:00:42]} dxc3 {[%emt 0:00:34]} 19. Qxc3 {[%emt 0:04:41]} Qb6 {[%emt 0:07:49]} 20. Bh4 {[%emt 0:07:12]} Bf8 {[%emt 0:03:47]} 21. Qxc5 {[%emt 0:03:41]} Qxc5+ {[%emt 0:00:08]} 22. Rxc5 {[%emt 0:00:10]} Rxd3 {[%emt 0:00:59]} 23. Rbc1 {[%emt 0:01:20]} Bd7 {[%emt 0:04:51]} 24. Rc7 {[%emt 0:02:04]} Rc8 {[%emt 0:05:44]} 25. Bxe7 {[%emt 0:08:26]} Rxc7 {[%emt 0:00:11]} 26. Rxc7 {[%emt 0:00:28]} Bxe7 {[%emt 0:00:04]} 27. Rc3 {[%emt 0:03:12]} Rd1+ {[%emt 0:03:10]} 28. Bf1 {[%emt 0:00:34]} Bc6 {[%emt 0:02:11]} 29. h3 {[%emt 0:05:10]} Bxf3 {[%emt 0:02:11]} 30. Rxf3 {[%emt 0:00:17]} Bc5+ {[%emt 0:00:13]} 31. Kh1 {[%emt 0:01:14]} Ne3 {[%emt 0:01:07]} 32. Ng3 {[%emt 0:00:33]} h5 33. h4 {[%emt 0:01:03]} Nxf1 {[%emt 0:02:33]} 34. Nxf1 {[%emt 0:01:05]} Ra1 {[%emt 0:00:57]} 35. a3 {[%emt 0:00:15]} Rb1 {[%emt 0:00:08]} 36. b4 {[%emt 0:00:18]} Be7 {[%emt 0:01:40]} 37. Kg2 {[%emt 0:01:22]} Bxh4 {[%emt 0:00:57]} 38. Kh3 {[%emt 0:00:10]} Be7 {[%emt 0:02:27]} 39. Ng3 {[%emt 0:01:12]} Rc1 {[%emt 0:03:39]} 40. Rd3 {[%emt 0:00:31]} Rc7 {[%emt 0:00:47]} 41. Rd2 {[%emt 0:30:33]} a5 {[%emt 0:31:26]} 42. bxa5 {[%emt 0:00:36]} Bxa3 {[%emt 0:00:06]} 43. Rg2 {[%emt 0:00:08]} Bb4 {[%emt 0:01:04]} 44. Nxh5 {[%emt 0:00:23]} Kf8 {[%emt 0:00:33]} 45. Nf6 {[%emt 0:00:22]} Bxa5 {[%emt 0:00:45]} 46. Ra2 {[%emt 0:00:25]} b6 {[%emt 0:00:57]} 47. Kg4 {[%emt 0:00:43]} Kg7 {[%emt 0:01:19]} 48. Rh2 {[%emt 0:00:22]} Rc1 {[%emt 0:01:14]} 49. Rh7+ {[%emt 0:00:20]} Kf8 {[%emt 0:00:07]} 50. Rh8+ {[%emt 0:00:10]} Kg7 {[%emt 0:00:40]} 51. Rh7+ {[%emt 0:02:12]} 1/2-1/2